bitfinex/quotes_ETHUSD_20241217
["timestamp","ask_amount","ask_price","bid_price","bid_amount"]
[1734399906771,1.04953516,3982.2,3979.9,0.02511466]
[1734399906772,1.04953516,3982.1,3981.7,0.7528]
[1734399907012,3.7470445,3982.0,3981.7,0.7528]
[1734399907214,2.16986504,3982.0,3981.7,0.7528]
[1734399907505,2.1001179,3982.1,3981.7,0.7528]
[1734399907654,3.74440518,3982.0,3981.7,0.7528]
[1734399907860,2.87638885,3982.0,3981.7,0.7528]
[1734399908091,2.17004082,3982.0,3981.7,0.7528]
[1734399908579,1.30202449,3982.0,3981.7,0.7528]
[1734399908784,2.17004082,3982.0,3981.4,0.7528]
[1734399910226,3.74396241,3982.0,3981.4,0.7528]
[1734399911726,2.87594608,3982.0,3981.4,0.7528]
[1734399911897,2.87594608,3982.0,3981.0,0.8303]
[1734399911898,2.17004082,3982.0,3981.0,0.8303]
[1734399912098,0.86736179,3982.0,3981.0,0.8303]
[1734399912281,1.57312702,3982.0,3981.0,0.8303]
[1734399912481,3.7415315,3982.0,3981.0,0.8303]
[1734399914314,3.74122277,3982.0,3981.0,0.8303]
[1734399914873,2.16840448,3982.0,3981.0,0.8303]
[1734399915774,2.71840448,3982.0,3981.0,0.8303]
[1734399915991,3.52540448,3982.0,3981.0,0.8303]
[1734399916422,0.55,3981.9,3981.0,0.8303]
[1734399916625,1.04805121,3981.5,3981.0,0.8303]
[1734399916927,0.86736179,3981.4,3981.0,0.8303]
[1734399917073,1.04805121,3981.5,3981.0,0.8303]
[1734399917544,0.86639589,3981.4,3981.0,0.8303]
[1734399917718,1.04805121,3981.8,3981.0,0.8303]
[1734399918031,1.04805121,3981.9,3981.0,0.8303]
[1734399918195,1.57207682,3982.1,3981.0,0.8303]
[1734399918196,1.04805121,3982.1,3981.0,0.8303]
[1734399918380,2.62014933,3982.7,3981.0,0.8303]
[1734399918381,0.86617657,3982.0,3981.0,0.8303]
[1734399918576,1.04805121,3982.2,3981.0,0.8303]
[1734399919128,1.04805121,3982.3,3981.0,0.8303]
[1734399919338,1.2991569,3982.2,3981.0,0.8303]
[1734399919623,1.04805121,3982.3,3981.0,0.8303]
[1734399919831,1.29915275,3982.2,3981.0,0.8303]
[1734399920034,1.04805121,3982.3,3981.0,0.8303]
[1734399920184,0.86604642,3982.2,3981.0,0.8303]
[1734399920382,1.04805121,3982.4,3981.0,0.8303]
[1734399920625,1.2991101,3982.3,3981.0,0.8303]
[1734399920819,1.04805121,3982.4,3981.0,0.8303]
[1734399920997,1.29909874,3982.3,3981.0,0.8303]
[1734399921198,1.04805121,3982.4,3981.0,0.8303]
[1734399921386,1.29906905,3982.3,3981.0,0.8303]
[1734399921580,1.04805121,3982.5,3981.0,0.8303]
[1734399922042,1.29905753,3982.4,3981.0,0.8303]
[1734399922258,0.86603835,3982.3,3981.0,0.8303]
[1734399922411,1.04805121,3982.4,3981.0,0.8303]
[1734399922612,1.29905627,3982.3,3981.0,0.8303]
[1734399922847,0.86603276,3982.2,3981.0,0.8303]
[1734399923115,1.04805121,3982.4,3981.0,0.8303]
[1734399923352,2.09610243,3982.7,3981.0,0.8303]
[1734399923353,3.21304503,3982.3,3981.0,0.8303]
[1734399923555,0.86599753,3982.2,3981.0,0.8303]
[1734399923770,1.04805121,3982.4,3981.0,0.85541777]
[1734399924262,1.2990326,3982.3,3981.1,0.02511648]
[1734399924418,1.04805121,3982.4,3981.2,0.7501]
[1734399924614,1.29901099,3982.3,3981.2,0.7501]
[1734399924859,1.04805121,3982.4,3981.2,0.7501]
[1734399925364,1.04805121,3982.5,3981.3,0.77521605]
[1734399925515,1.04805121,3982.8,3981.3,0.7501]
[1734399925713,2.16482768,3982.7,3981.3,0.7501]
[1734399925918,1.04805121,3982.8,3981.3,0.7501]
[1734399925919,0.86593107,3982.6,3981.3,0.7501]
[1734399926144,1.04805121,3982.8,3981.3,0.7501]
[1734399926563,1.29885268,3982.7,3981.3,0.7501]
[1734399926861,0.86591058,3982.6,3981.3,0.7501]
[1734399927066,1.04805121,3982.8,3981.3,0.7501]
[1734399927371,1.29890797,3982.7,3981.3,0.7501]
[1734399927542,0.86593865,3982.6,3981.5,0.7501]
[1734399927748,1.04805121,3982.8,3981.5,0.7501]
[1734399928054,1.29891828,3982.7,3981.5,0.7501]
[1734399928380,1.04805121,3982.8,3981.5,0.7501]
[1734399928545,1.29892048,3982.7,3981.5,0.7501]
[1734399928742,1.04805121,3982.8,3981.5,0.7501]
[1734399928940,1.29891811,3982.7,3981.5,0.7501]
[1734399929267,1.04805121,3983.2,3981.7,0.7589]
[1734399929476,1.04805121,3983.3,3981.9,0.7589]
[1734399929784,1.04805121,3983.4,3982.0,0.83726394]
[1734399929979,1.04805121,3983.4,3982.0,0.7589]
[1734399930480,3.21250747,3983.3,3982.0,0.7589]
[1734399930664,0.8657825,3983.2,3982.0,0.7589]
[1734399930868,1.04805121,3983.3,3982.0,0.7589]
[1734399931070,1.04805121,3983.3,3982.2,0.7589]
[1734399931880,1.29868108,3983.2,3982.2,0.7589]
[1734399932183,1.04805121,3983.3,3982.2,0.7589]
[1734399932184,0.86580296,3983.1,3982.2,0.7589]
[1734399932481,1.04805121,3983.3,3982.2,0.7589]
[1734399932688,1.29866811,3983.2,3982.2,0.7589]
[1734399932839,1.04805121,3983.3,3982.2,0.7589]
[1734399933041,1.04805121,3983.4,3982.2,0.7589]
[1734399933241,1.29859468,3983.3,3982.2,0.7589]
[1734399933478,0.86572978,3983.2,3982.2,0.7589]
[1734399933642,1.04805121,3983.4,3982.2,0.7589]
[1734399933840,1.29859678,3983.3,3982.2,0.7589]
[1734399934041,0.86573118,3983.2,3982.2,0.7589]
[1734399934342,1.04805121,3983.4,3982.2,0.7589]
[1734399934539,1.29855525,3983.3,3982.2,0.7589]
[1734399934768,1.04805121,3983.4,3982.2,0.7589]
[1734399935178,0.86568919,3983.3,3982.2,0.7589]
[1734399935341,2.09610243,3983.8,3982.2,0.7589]
[1734399935342,1.04805121,3983.6,3982.2,0.7589]
[1734399935540,3.21212174,3983.5,3982.2,0.7589]
[1734399935790,2.16407053,3983.4,3982.2,0.7589]
[1734399935941,1.04805121,3983.5,3982.2,0.7589]
[1734399936138,1.29847939,3983.4,3982.2,0.7589]
[1734399936339,1.04805121,3983.5,3982.2,0.7589]
[1734399936539,1.29845393,3983.4,3982.3,0.7589]
[1734399936742,1.04805121,3983.5,3982.3,0.7589]
[1734399937222,1.04805121,3983.7,3982.5,0.7589]
[1734399937374,1.04805121,3984.0,3982.5,0.7589]
[1734399937580,3.42575205,3984.6,3982.7,0.7589]
[1734399937581,1.91353711,3984.1,3982.7,0.7589]
[1734399937783,3.21172911,3984.0,3982.7,3.0]
[1734399938007,1.04805121,3984.3,3982.9,0.7589]
[1734399938324,1.29841842,3984.2,3982.9,0.7589]
[1734399938522,1.04805121,3984.3,3982.9,0.7589]
[1734399938729,1.04805121,3984.3,3983.1,0.7589]
[1734399938881,1.29816968,3984.2,3983.1,0.7589]
[1734399939081,1.04805121,3984.3,3983.1,0.7589]
[1734399939275,1.04805121,3984.3,3983.2,0.02510241]
[1734399939492,1.57207682,3984.5,3983.2,0.02510241]
[1734399939493,1.04805121,3984.5,3983.3,0.7589]
[1734399939691,1.04805121,3984.6,3983.3,0.7589]
[1734399939908,1.04805121,3984.6,3983.5,0.7589]
[1734399940108,0.86537098,3984.5,3983.5,0.7589]
[1734399940421,1.04805121,3984.8,3983.5,0.7589]
[1734399940639,0.8084,3985.1,3983.4,3.4035019]
[1734399940640,1.04805121,3985.1,3983.7,0.7589]
[1734399940925,1.3093907,3985.5,3984.3,0.7589]
[1734399941093,1.04805121,3985.7,3984.5,3.7589]
[1734399941292,1.04805121,3986.1,3984.7,3.0]
[1734399941526,1.04805121,3986.3,3984.8,0.7589]
[1734399941728,1.04805121,3986.4,3984.8,0.7589]
[1734399942026,0.86433267,3986.3,3984.8,0.7589]
[1734399942260,0.86433267,3986.2,3984.8,0.78399147]
[1734399942393,1.04805121,3986.6,3985.0,0.7589]
[1734399942598,1.04805121,3986.8,3985.0,0.7589]
[1734399942833,0.86343737,3986.7,3985.0,0.7589]
[1734399943195,1.05305121,3987.0,3985.0,0.7589]
[1734399943399,1.05305121,3987.0,3985.0,0.7839897]
[1734399943400,0.005,3987.0,3985.0,0.7839897]
[1734399943719,0.005,3987.0,3985.0,0.7589]
[1734399943922,0.005,3987.0,3985.1,0.762]
[1734399945552,0.555,3987.0,3985.1,0.762]
[1734399947244,0.005,3987.0,3985.1,0.762]
[1734399947649,0.005,3987.0,3985.3,0.762]
[1734399947831,0.005,3987.0,3985.2,0.02508924]
[1734399947832,0.005,3987.0,3985.6,0.762]
[1734399948029,0.005,3987.0,3985.6,0.78708736]
[1734399948230,0.005,3987.0,3985.6,0.762]
[1734399949266,0.005,3987.0,3985.7,0.762]
[1734399951123,0.005,3987.0,3985.7,3.762]
[1734399951438,0.005,3987.0,3985.8,0.762]
[1734399952242,0.005,3987.0,3985.9,0.63992537]
[1734399952595,0.005,3987.0,3986.3,0.762]
[1734399957066,0.55,3986.9,3986.0,0.762]
[1734399959733,0.55,3986.7,3985.6,0.8311]
[1734399962546,0.005,3987.0,3985.6,0.8311]
[1734399963252,0.005,3987.0,3985.9,0.8311]
[1734399963402,0.005,3987.0,3986.1,0.8311]
[1734399966002,0.555,3987.0,3986.1,0.8311]
[1734399966448,0.005,3987.0,3986.1,0.8311]
[1734399970819,0.55,3986.9,3986.1,0.8311]
[1734399972214,0.8326,3986.8,3986.1,0.8311]
[1734399973762,0.55,3986.9,3986.1,0.8311]
[1734399974315,0.005,3987.0,3986.1,0.8311]
[1734399978563,2.12405621,3987.0,3986.1,0.8311]
[1734399979156,0.86274885,3986.9,3986.1,0.8311]
[1734399979350,2.15686524,3986.9,3986.1,0.8311]
[1734399979572,3.17210742,3987.0,3986.1,0.8311]
[1734399979573,3.20507265,3986.8,3986.1,0.8311]
[1734399979753,2.15702144,3986.7,3986.1,0.8311]
[1734399980074,2.11905621,3986.6,3986.1,0.8311]
[1734399980259,3.20507265,3986.5,3986.1,0.8311]
[1734399980461,1.04805121,3986.3,3985.8,0.7652]
[1734399980666,2.15702144,3986.2,3985.8,0.7652]
[1734399980865,2.3423238,3986.2,3985.8,0.7652]
[1734399981036,0.86274885,3986.1,3985.8,0.7652]
[1734399981358,1.04805121,3986.1,3985.8,0.7652]
[1734399981538,2.15896312,3986.0,3984.7,0.7652]
[1734399981852,0.86274885,3985.9,3984.7,0.7652]
[1734399982184,1.04805121,3985.9,3984.7,0.7652]
[1734399982348,1.29735013,3985.8,3984.8,0.7652]
[1734399982540,0.86490009,3985.7,3984.8,0.7652]
[1734399982741,1.04805121,3985.9,3984.8,0.7652]
[1734399982975,1.29740608,3985.8,3984.9,0.7652]
[1734399983143,1.04805121,3985.7,3985.0,0.7652]
[1734399983353,0.86493786,3985.6,3985.0,1.08367367]
[1734399983668,1.04805121,3985.8,3985.1,0.7652]
[1734399983850,3.21253584,3985.7,3985.1,0.7652]
[1734399984049,0.86579385,3985.6,3985.1,0.7652]
[1734399984268,1.04805121,3985.7,3985.1,0.7652]
[1734399984449,3.21335976,3985.6,3985.1,0.7652]
[1734399984655,2.16530855,3985.5,3985.1,0.7652]
[1734399984981,1.04805121,3985.6,3985.1,0.7652]
[1734399985184,3.21479111,3985.5,3985.1,0.7652]
[1734399985381,2.09610243,3985.9,3985.1,0.7652]
[1734399985382,0.86630943,3985.4,3985.1,0.7652]
[1734399985550,1.04805121,3985.6,3985.1,0.7652]
[1734399985953,0.86694843,3985.7,3985.1,0.7652]
[1734399985954,3.21542228,3985.5,3985.1,0.7652]
[1734399986156,0.86750185,3985.4,3985.2,4.08367367]
[1734399986371,1.04805121,3985.7,3985.4,0.7652]
[1734399986680,0.86746728,3985.6,3985.4,0.7652]
[1734399986854,1.04805121,3985.7,3985.4,0.7652]
[1734399987368,1.91554372,3985.7,3985.4,0.7652]
[1734399987543,1.04805121,3985.7,3985.4,0.7652]
[1734399987744,1.04805121,3985.7,3985.5,0.7652]
[1734399987982,1.91569732,3985.7,3985.5,0.7652]
[1734399988189,0.86764611,3985.6,3985.5,0.7652]
[1734399988343,1.91569732,3985.6,3985.5,0.7652]
[1734399988550,0.86764611,3985.6,3985.5,0.7652]
[1734399988971,2.16910294,3985.6,3985.5,1.4393576]
[1734399989174,1.04929909,3986.2,3985.6,0.7652]
[1734399989356,1.57207682,3986.4,3985.6,0.7652]
[1734399989357,1.04929909,3986.3,3985.7,0.3357986]
[1734399989544,0.86743966,3986.2,3985.8,0.7652]
[1734399989747,1.04929909,3986.4,3985.8,0.7652]
[1734399989949,1.30116735,3986.3,3985.8,0.7652]
[1734399990198,0.8674449,3986.2,3985.8,0.7652]
[1734399990488,1.04929909,3986.4,3985.8,0.7652]
[1734399990691,3.21792575,3986.3,3985.8,0.7652]
[1734399990850,2.16862666,3986.2,3985.8,0.7652]
[1734399991050,1.04929909,3986.3,3985.8,0.7652]
[1734399991249,1.04929909,3986.1,3985.8,0.7652]
[1734399991558,3.21811367,3986.0,3985.8,0.7652]
[1734399991759,3.21811367,3985.9,3985.8,0.7652]
[1734399992093,2.16881458,3985.9,3984.8,0.7652]
[1734399992254,1.04927723,3985.5,3984.8,0.7652]
[1734399992959,0.86752583,3985.4,3984.8,0.7652]
[1734399993176,1.04927723,3985.6,3984.8,0.7652]
[1734399993392,1.30131713,3985.5,3984.8,0.7652]
[1734399993593,1.04927723,3985.6,3984.8,0.7652]
[1734399993744,0.8675183,3985.5,3984.8,1.1009986]
[1734399993946,1.04927723,3985.7,3985.0,0.7617]
[1734399994250,1.04927723,3985.9,3985.2,0.7617]
[1734399994791,1.30118733,3985.8,3985.2,0.7617]
[1734399994993,1.91673545,3985.9,3985.2,0.7617]
[1734399994994,1.04927723,3985.9,3985.3,0.7617]
[1734399995493,1.04927723,3985.9,3985.0,0.3357986]
[1734399995494,1.04927723,3986.0,3985.4,3.7617]
[1734399995659,1.04927723,3986.2,3985.3,0.3357986]
[1734399995860,1.04927723,3986.2,3984.9,0.46385113]
[1734399995861,1.04927723,3986.3,3985.5,0.7617]
[1734399996062,0.86737802,3986.2,3985.6,0.7617]
[1734399996252,1.04927723,3986.3,3985.8,0.7617]
[1734399996593,1.57391585,3986.5,3985.8,0.7617]
[1734399996594,0.8673728,3986.2,3985.8,0.7617]
[1734399996894,1.04927723,3986.4,3985.8,0.7617]
[1734399997102,1.30107824,3986.3,3985.9,0.02508722]
[1734399997395,1.04927723,3986.7,3986.0,0.7617]
[1734399997762,0.86733069,3986.6,3986.0,0.7617]
[1734399997964,1.04927723,3986.7,3986.1,0.7617]
[1734399998195,1.30096938,3986.6,3986.1,0.7617]
[1734399998395,1.04927723,3986.7,3986.1,0.7617]
[1734399998699,1.30097677,3986.6,3986.1,0.7617]
[1734399998883,0.86731784,3986.5,3986.1,0.7617]
[1734399999084,1.04927723,3986.7,3986.1,0.7617]
[1734399999267,1.30112291,3986.6,3986.1,0.7617]
[1734399999467,1.04927723,3986.7,3986.1,0.7617]
[1734399999659,1.30103046,3986.6,3986.1,0.7617]
[1734399999861,3.21766133,3986.5,3986.1,0.7617]
[1734400000056,0.86735364,3986.4,3986.1,0.7617]
[1734400000256,2.09610243,3986.9,3986.1,0.7617]
[1734400000257,1.04927723,3986.7,3986.1,0.7617]
[1734400000456,1.30103458,3986.6,3986.1,0.7617]
[1734400000690,0.86735639,3986.5,3986.1,0.7617]
[1734400000888,1.04927723,3986.6,3986.1,0.7617]
[1734400001200,0.8673745,3986.5,3986.1,0.7617]
[1734400001397,1.04927723,3986.6,3986.1,0.7617]
[1734400001560,0.86737199,3986.5,3986.1,0.7617]
[1734400001758,1.04927723,3986.7,3986.1,0.7617]
[1734400001959,3.2176168,3986.7,3986.1,0.7617]
[1734400002194,2.16833957,3986.6,3986.1,0.7617]
[1734400002397,1.04927723,3986.7,3986.1,0.7617]
[1734400002977,0.86724247,3986.6,3986.1,0.7617]
[1734400003200,1.04927723,3986.8,3986.1,0.7617]
[1734400003357,1.30080365,3986.7,3986.1,0.7617]
[1734400003592,0.86720243,3986.6,3986.1,0.7617]
[1734400003766,1.04927723,3986.8,3986.1,0.7617]
[1734400003968,3.21722628,3986.7,3986.1,0.7617]
[1734400004178,0.86717962,3986.6,3986.1,0.7617]
[1734400004408,1.04927723,3986.8,3986.1,0.7617]
[1734400004571,1.30067851,3986.7,3986.1,0.7617]
[1734400004902,0.86711901,3986.6,3986.1,0.7617]
[1734400005114,1.57891585,3987.0,3986.1,0.7617]
[1734400005115,0.86714995,3986.5,3986.1,0.7617]
[1734400005289,3.21719654,3986.4,3985.1,0.7725]
[1734400005459,3.21719654,3986.3,3985.1,0.7725]
[1734400005658,3.21719654,3986.3,3984.8,0.45869554]
[1734400005659,1.04927723,3986.1,3984.9,0.7725]
[1734400005858,2.35017487,3986.1,3984.9,0.7725]
[1734400006174,2.16816048,3986.0,3984.9,0.7725]
[1734400006375,0.8672791,3985.9,3984.9,0.7725]
[1734400006576,1.04927723,3986.0,3984.9,0.7725]
[1734400007309,1.300985,3985.9,3984.9,0.7725]
[1734400007601,1.04927723,3986.0,3984.9,0.94206693]
[1734400007803,3.21760489,3985.9,3984.9,0.7725]
[1734400007973,2.16832766,3985.8,3985.1,0.7725]
[1734400008179,0.86733106,3985.7,3985.1,0.7725]
[1734400008501,1.04927723,3985.8,3985.1,0.7725]
[1734400009803,1.04927723,3985.6,3985.1,0.7725]
[1734400010104,1.04927723,3985.7,3985.1,0.7725]
[1734400010404,3.21793319,3985.6,3985.1,0.7725]
[1734400010705,2.16865596,3985.5,3985.1,0.7725]
[1734400011025,0.86746238,3985.4,3985.1,0.7725]
[1734400011314,1.04927723,3985.5,3985.1,0.7725]
[1734400012433,2.35049174,3985.5,3985.1,0.7725]
[1734400012580,0.86751919,3985.4,3985.1,0.7725]
[1734400012785,1.04927723,3985.5,3985.1,0.7725]
[1734400013410,0.86746558,3985.4,3985.1,0.7725]
[1734400013651,1.04927723,3985.6,3985.1,0.7725]
[1734400013801,1.30111621,3985.5,3985.1,0.7725]
[1734400013987,1.04927723,3985.6,3985.1,0.7725]
[1734400014183,1.30111663,3985.5,3985.1,0.7725]
[1734400014407,1.04927723,3985.6,3985.1,0.7725]
[1734400015130,0.86740804,3985.5,3985.1,0.7725]
[1734400015337,1.04927723,3985.7,3985.2,0.8259]
[1734400015498,2.62241473,3986.3,3985.4,0.8259]
[1734400015499,1.04927723,3986.2,3985.4,0.8259]
[1734400015687,1.04927723,3986.2,3985.5,0.8259]
[1734400015894,1.04927723,3986.4,3985.6,0.8259]
[1734400016102,1.30079429,3986.3,3985.6,0.8259]
[1734400016429,1.04927723,3986.4,3985.6,0.8259]
[1734400016628,1.30075615,3986.3,3985.6,0.8259]
[1734400016800,1.04927723,3986.4,3985.6,0.85098746]
[1734400017005,1.30076774,3986.3,3985.6,0.8259]
[1734400017327,1.04927723,3986.4,3985.6,0.8259]
[1734400018420,1.300741,3986.3,3985.6,0.8259]
[1734400018837,0.86716993,3986.2,3985.6,0.8259]
[1734400018990,1.04927723,3986.3,3985.6,0.8259]
[1734400019543,1.04927723,3986.5,3985.7,0.7959]
[1734400019839,1.30068644,3986.4,3985.7,0.7959]
[1734400020044,1.04927723,3986.6,3985.7,0.7959]
[1734400020247,1.30066358,3986.5,3985.7,0.7959]
[1734400020536,0.86710905,3986.4,3985.7,0.7959]
[1734400020847,1.04927723,3986.6,3985.9,0.7959]
[1734400021448,2.10110243,3987.0,3986.0,0.3357986]
[1734400021449,1.04927723,3986.7,3986.0,0.3357986]
[1734400021650,1.05427723,3987.0,3986.1,0.7959]
[1734400021946,0.86696237,3986.9,3986.1,0.7959]
[1734400022249,1.05427723,3987.0,3986.1,0.7959]
[1734400022541,0.86686719,3986.9,3986.1,0.7959]
[1734400023095,0.005,3987.0,3986.1,0.7959]
[1734400023300,0.005,3987.0,3986.1,1.4700576]
[1734400023520,0.005,3987.0,3986.4,0.7959]
[1734400023948,1.04927723,3986.9,3986.4,0.7959]
[1734400024098,0.005,3987.0,3986.4,0.7959]
[1734400027160,3.21552898,3986.9,3985.3,0.7959]
[1734400027439,0.86648592,3986.8,3985.5,0.7959]
[1734400027747,1.05427723,3987.0,3985.6,1.31898751]
[1734400027946,3.21558156,3986.9,3986.0,3.0]
[1734400028102,0.86652173,3986.8,3986.1,0.7959]
[1734400028296,1.04927723,3986.9,3986.1,0.7959]
[1734400028528,1.29989322,3986.8,3986.1,0.7959]
[1734400028801,1.04927723,3986.9,3986.1,0.7959]
[1734400029000,1.2998894,3986.8,3986.1,0.7959]
[1734400029231,0.86659293,3986.7,3986.1,0.7959]
[1734400029438,1.04927723,3986.9,3986.1,0.7959]
[1734400029742,1.29996162,3986.8,3986.1,0.7959]
[1734400029946,0.86664108,3986.7,3986.1,0.7959]
[1734400030146,0.005,3987.0,3986.1,0.7959]
[1734400030147,1.04927723,3986.8,3986.1,0.7959]
[1734400030317,0.86665765,3986.7,3986.1,0.7959]
[1734400030516,0.8219,3986.7,3985.8,0.7959]
[1734400030847,1.04927723,3986.4,3985.8,0.7959]
[1734400031046,1.04927723,3986.2,3985.8,0.7959]
[1734400031197,1.30019374,3986.1,3985.8,0.7959]
[1734400031398,1.04927723,3986.2,3985.8,0.7959]
[1734400031603,1.04927723,3986.3,3985.8,0.7959]
[1734400031912,3.21661614,3986.2,3985.8,0.7959]
[1734400032117,1.04927723,3986.2,3985.8,0.7959]
[1734400032302,1.30044871,3986.1,3985.8,0.7959]
[1734400032497,1.04927723,3986.2,3985.8,0.7959]
[1734400032746,1.30045947,3986.1,3985.8,0.7959]
[1734400032946,0.8669858,3986.0,3985.8,0.7959]
[1734400033102,1.04927723,3986.3,3985.8,0.7959]
[1734400033303,1.30041326,3986.2,3985.8,0.7959]
[1734400033551,0.86694217,3986.1,3985.8,0.7959]
[1734400033721,1.04927723,3986.4,3985.8,0.7959]
[1734400033914,3.21668391,3986.4,3985.8,0.7959]
[1734400034106,2.16740668,3986.3,3985.8,0.7959]
[1734400034310,0.86696267,3986.2,3985.8,0.7959]
[1734400034548,1.04927723,3986.3,3985.8,0.7959]
[1734400035147,1.30054793,3986.2,3985.8,0.7959]
[1734400035300,0.8670591,3986.1,3985.8,0.7959]
[1734400035507,1.04927723,3986.3,3985.8,0.7959]
[1734400036043,0.86704856,3986.2,3985.8,0.7959]
[1734400036203,0.86704856,3986.1,3985.8,0.7959]
[1734400036404,1.04927723,3986.2,3985.8,0.7959]
[1734400036621,1.30060825,3986.1,3985.8,0.7959]
[1734400036816,3.21698658,3986.0,3985.4,0.7529]
[1734400037043,2.16770935,3985.9,3985.4,0.7529]
[1734400037203,2.16776428,3985.8,3985.4,0.7529]
[1734400037407,1.04927723,3986.0,3985.4,0.7529]
[1734400037832,1.30061968,3985.9,3985.4,0.7529]
[1734400038055,0.86707978,3985.8,3985.4,0.7529]
[1734400038249,1.04927723,3986.1,3985.4,0.7529]
[1734400038457,1.30059993,3986.0,3985.4,0.7529]
[1734400038748,2.16775637,3985.9,3985.4,0.7529]
[1734400038904,0.86713872,3985.8,3985.4,0.7529]
[1734400039111,1.04927723,3986.0,3985.4,0.7529]
[1734400039846,0.86713835,3985.9,3985.5,0.7529]
[1734400040055,2.09610243,3986.5,3985.5,0.7529]
[1734400040056,1.04927723,3986.5,3985.6,0.7529]
[1734400040201,1.30065876,3986.4,3985.8,0.7529]
[1734400040401,1.04927723,3986.6,3985.8,0.7529]
[1734400040752,3.21709096,3986.6,3985.8,0.7529]
[1734400040953,1.04927723,3986.7,3986.0,0.7529]
[1734400041109,0.005,3987.0,3986.1,0.6741576]
[1734400041110,1.05427723,3987.0,3986.1,0.6741576]
[1734400041305,0.86701782,3986.9,3986.4,0.7529]
[1734400041618,0.005,3987.0,3986.5,0.37529]
[1734400041944,0.005,3987.0,3986.4,0.7529]
[1734400045103,1e-05,3987.0,3986.4,0.7529]
[1734400045625,1e-05,3987.0,3986.6,0.7529]
[1734400045824,1e-05,3987.0,3986.8,0.7529]
[1734400046028,1e-05,3987.0,3986.9,1.11377502]
[1734400046222,1e-05,3987.0,3986.9,1.25898842]
[1734400046654,1e-05,3987.0,3986.9,1.233912]
[1734400049078,1e-05,3987.0,3986.9,0.8981134]
[1734400049654,1e-05,3987.0,3986.1,0.3357986]
[1734400049873,1e-05,3987.0,3986.2,0.7529]
[1734400050447,1e-05,3987.0,3986.6,3.0]
[1734400050973,1e-05,3987.0,3986.4,3.0]
[1734400051294,0.82841,3987.0,3986.2,0.7529]
[1734400051783,0.82841,3987.0,3985.8,0.2496]
[1734400051998,0.86552926,3986.9,3985.8,1.0025]
[1734400052147,1.87768723,3987.0,3985.8,1.0025]
[1734400052475,1.87767723,3986.8,3985.8,0.2496]
[1734400052775,1.04927723,3986.5,3985.8,0.2496]
[1734400052983,3.17624041,3986.4,3985.8,0.2496]
[1734400053164,2.16410263,3986.3,3985.8,0.2496]
[1734400053631,0.86572759,3986.2,3985.8,0.2496]
[1734400053966,0.86572759,3986.1,3985.8,0.2496]
[1734400054164,1.87767723,3986.3,3985.8,0.2496]
[1734400054363,0.8657477,3986.2,3985.8,0.2496]
[1734400055039,0.86576908,3986.1,3985.8,0.2496]
[1734400055234,1.87767723,3986.3,3985.8,0.2496]
[1734400055465,2.16444115,3986.2,3985.8,0.2496]
[1734400055780,0.8284,3986.3,3985.8,0.2496]
[1734400055978,0.86575235,3986.2,3985.8,0.2496]
[1734400056135,1.87767723,3986.3,3985.8,0.2496]
[1734400056480,2.1644191,3986.2,3985.8,0.2496]
[1734400057040,1.04927723,3986.0,3985.8,0.2496]
[1734400057240,2.34811623,3986.0,3985.8,0.2496]
[1734400057554,0.86576215,3985.9,3985.8,0.2496]
[1734400057759,1.91520356,3986.0,3985.8,0.2496]
[1734400057959,0.86592633,3985.9,3985.8,0.2496]
[1734400058589,2.16490197,3985.9,3985.8,0.2496]
[1734400059175,2.34825287,3985.9,3985.8,0.2496]
[1734400059365,2.16490197,3985.9,3985.8,0.2496]
[1734400059561,1.29888321,3985.9,3985.8,0.2496]
[1734400059765,2.34823988,3986.0,3985.8,0.2496]
[1734400059950,2.16488181,3985.9,3985.8,0.2496]
[1734400060149,1.29895967,3985.9,3985.8,0.2496]
[1734400060486,0.86592214,3985.9,3985.8,0.2496]
[1734400060687,1.04927723,3986.1,3985.8,0.2496]
[1734400060887,1.29895876,3986.0,3985.8,0.2496]
[1734400061090,0.86592214,3985.9,3985.8,0.2496]
[1734400061502,1.04927723,3986.1,3985.8,0.2496]
[1734400061854,0.86590403,3986.0,3985.8,0.2496]
[1734400062152,1.04927723,3986.2,3985.8,0.2496]
[1734400062352,0.86586928,3986.1,3985.8,0.2496]
[1734400062596,1.04927723,3986.4,3985.8,1.0025]
[1734400062754,0.86579469,3986.3,3985.8,1.0025]
[1734400062959,1.04927723,3986.5,3985.8,1.0025]
[1734400063159,3.21378578,3986.4,3985.8,1.0025]
[1734400063363,1.04927723,3986.4,3985.8,0.2496]
[1734400063562,1.29875265,3986.3,3985.8,0.2496]
[1734400063794,0.7645,3986.1,3985.8,0.2496]
[1734400064002,0.8658351,3986.0,3985.8,0.2496]
[1734400064151,1.81377723,3986.1,3985.8,0.2496]
[1734400064352,0.86583921,3986.0,3985.8,0.2496]
[1734400064769,0.7645,3986.1,3985.8,0.2496]
[1734400064989,0.86576915,3986.0,3985.8,0.2496]
[1734400065389,0.7645,3986.1,3985.8,0.2496]
[1734400065390,2.67954638,3986.1,3985.8,0.2496]
[1734400065589,0.7645,3986.1,3985.8,0.2496]
[1734400065979,2.88355621,3985.9,3985.8,0.2496]
[1734400066181,5.52965864,3985.9,3985.8,0.2496]
[1734400066410,6.91709391,3985.9,3985.8,0.2496]
[1734400066568,8.21571068,3985.9,3985.8,0.2496]
[1734400066766,7.8281435,3985.9,3985.8,0.2496]
[1734400066973,6.75429537,3985.9,3985.8,0.2496]
[1734400067309,4.49917697,3985.9,3985.8,0.2496]
[1734400068303,4.49875517,3985.9,3985.8,0.2496]
[1734400068886,2.92799165,3985.9,3985.8,0.2496]
[1734400070178,4.49788554,3985.9,3985.8,0.2496]
[1734400070975,5.04788554,3985.9,3985.8,0.2496]
[1734400072622,3.47799165,3985.9,3985.8,0.2496]
[1734400072840,5.20818084,3985.9,3985.8,0.2496]
[1734400073045,5.04733031,3985.9,3985.8,0.2496]
[1734400073344,5.2081996,3985.9,3985.8,0.2496]
[1734400073501,5.20722466,3985.9,3985.8,0.2496]
[1734400073711,5.04615629,3985.9,3985.8,0.2496]
[1734400074048,5.04616593,3985.9,3985.8,0.2496]
[1734400074349,5.20698824,3985.9,3985.8,0.2496]